bitfinex/quotes_BTCUSD_20240617
["timestamp","ask_amount","ask_price","bid_price","bid_amount"]
[1718624721095,0.79337392,65854.0,65853.0,0.01185]
[1718624721920,1.09807592,65854.0,65853.0,0.02585]
[1718624722341,0.88147592,65854.0,65853.0,0.01185]
[1718624722590,0.12322092,65854.0,65853.0,0.35279079]
[1718624722795,0.12322092,65854.0,65853.0,0.27389847]
[1718624723416,0.06572507,65854.0,65853.0,0.27389847]
[1718624724793,0.01572507,65854.0,65853.0,0.50245147]
[1718624725067,0.01572507,65854.0,65853.0,0.56495147]
[1718624725282,0.01572507,65854.0,65853.0,0.99469079]
[1718624728209,0.01577492,65854.0,65853.0,0.99469079]
[1718624733063,0.001,65854.0,65853.0,0.99469079]
[1718624733213,0.01577492,65854.0,65853.0,0.99469079]
[1718624734230,0.01577492,65854.0,65853.0,1.29839679]
[1718624734647,0.001,65854.0,65853.0,1.29839679]
[1718624735073,0.001,65854.0,65853.0,1.46290279]
[1718624735455,0.001,65854.0,65853.0,1.77795857]
[1718624736117,0.001,65854.0,65853.0,1.77795946]
[1718624736328,0.001,65854.0,65853.0,1.46290279]
[1718624736532,0.001,65854.0,65853.0,0.47303179]
[1718624736745,0.05849585,65854.0,65853.0,0.47302008]
[1718624736956,0.001,65854.0,65853.0,0.47302008]
[1718624737165,0.01582618,65854.0,65853.0,0.47302008]
[1718624737370,0.05849585,65854.0,65853.0,0.39992008]
[1718624737586,0.07332203,65854.0,65853.0,0.39992008]
[1718624738352,0.07332203,65854.0,65853.0,0.55177308]
[1718624738560,0.16767718,65854.0,65853.0,0.39992008]
[1718624738938,0.01582618,65854.0,65853.0,0.39992008]
[1718624739766,0.07332203,65854.0,65853.0,0.39992008]
[1718624740004,0.07332203,65854.0,65853.0,0.39992114]
[1718624740340,0.54887503,65854.0,65853.0,0.39992114]
[1718624740513,0.69217503,65854.0,65853.0,0.32696046]
[1718624740650,0.69217503,65854.0,65853.0,0.20093779]
[1718624741061,0.23662203,65854.0,65853.0,0.32696994]
[1718624741915,0.38847303,65854.0,65853.0,0.32696994]
[1718624742926,0.38847303,65854.0,65853.0,0.40434925]
[1718624743738,0.36847303,65854.0,65853.0,0.40434925]
[1718624743911,0.21662203,65854.0,65853.0,0.40434925]
[1718624744355,0.15912618,65854.0,65853.0,0.40434925]
[1718624744793,0.21662203,65854.0,65853.0,0.40434925]
[1718624745460,0.69217503,65854.0,65853.0,0.40434925]
[1718624745659,0.99587703,65854.0,65853.0,0.32696994]
[1718624746755,0.69217503,65854.0,65853.0,0.32696994]
[1718624746984,0.69217503,65854.0,65853.0,0.32697321]
[1718624747442,0.36847303,65854.0,65853.0,0.32697321]
[1718624748547,0.36847303,65854.0,65853.0,0.3269692]
[1718624748769,0.15322203,65854.0,65853.0,0.3269692]
[1718624748986,0.60877503,65854.0,65853.0,0.43472063]
[1718624749398,0.62877503,65854.0,65853.0,0.43472063]
[1718624749911,0.60877503,65854.0,65853.0,0.43472063]
[1718624750116,0.60877503,65854.0,65853.0,0.3269692]
[1718624752985,0.62877503,65854.0,65853.0,0.3269692]
[1718624753394,0.62877503,65854.0,65853.0,0.32696908]
[1718624754825,0.60877503,65854.0,65853.0,0.32696908]
[1718624755035,0.30507303,65854.0,65853.0,0.32696908]
[1718624755445,0.32507303,65854.0,65853.0,0.32696908]
[1718624757979,0.30507303,65854.0,65853.0,0.32696908]
[1718624759249,0.22517303,65854.0,65853.0,0.32696908]
[1718624759858,0.22517303,65854.0,65853.0,0.32696965]
[1718624760432,0.01582618,65854.0,65853.0,0.32696965]
[1718624760662,0.01582618,65854.0,65853.0,0.43926876]
[1718624761269,0.07332203,65854.0,65853.0,0.43926876]
[1718624761752,0.09332203,65854.0,65853.0,0.43926876]
[1718624762398,0.24517303,65854.0,65853.0,0.43926749]
[1718624762815,0.54887503,65854.0,65853.0,0.43926749]
[1718624763028,0.54887503,65854.0,65853.0,0.15188059]
[1718624763235,1.09267703,65854.0,65853.0,0.15188059]
[1718624763439,1.40637903,65854.0,65853.0,0.15188059]
[1718624763849,1.40637903,65854.0,65853.0,0.02585]
[1718624764274,1.39637903,65854.0,65853.0,0.02585]
[1718624764687,1.39537903,65854.0,65853.0,0.01185]
[1718624765059,1.39637903,65854.0,65853.0,0.01485]
[1718624765267,1.39637903,65854.0,65853.0,0.02385]
[1718624765669,1.39537903,65854.0,65853.0,0.00985]
[1718624765899,1.39537903,65854.0,65853.0,0.00085]
[1718624766085,1.39637903,65854.0,65853.0,0.01285]
[1718624766833,1.39637903,65854.0,65853.0,0.01585]
[1718624767851,1.39537903,65854.0,65853.0,0.00385]
[1718624768021,1.39637903,65854.0,65853.0,0.01585]
[1718624769237,0.31342203,65854.0,65853.0,0.01585]
[1718624769438,0.26342203,65854.0,65853.0,0.01585]
[1718624769615,0.31342203,65854.0,65853.0,0.167703]
[1718624769821,0.31342203,65854.0,65853.0,0.01585]
[1718624770630,0.06582618,65854.0,65853.0,0.167703]
[1718624770856,0.06582618,65854.0,65853.0,0.01585]
[1718624771301,0.06582618,65854.0,65853.0,0.471409]
[1718624771514,0.06582618,65854.0,65853.0,0.167703]
[1718624773013,0.12332203,65854.0,65853.0,0.01585]
[1718624773209,0.12332203,65854.0,65853.0,0.0703026]
[1718624773419,0.12332203,65854.0,65853.0,0.01585]
[1718624773821,0.06582618,65854.0,65853.0,0.01585]
[1718624774232,0.06582618,65854.0,65853.0,0.13969412]
[1718624775166,0.06582618,65854.0,65853.0,0.29154712]
[1718624775810,0.06582618,65854.0,65853.0,0.89895912]
[1718624776631,0.06582618,65854.0,65853.0,0.29154712]
[1718624777726,0.06582618,65854.0,65853.0,0.5952977]
[1718624777939,0.06582618,65854.0,65853.0,0.2915917]
[1718624778755,0.01582618,65854.0,65853.0,1.28740426]
[1718624778958,0.01582618,65854.0,65853.0,1.31040426]
[1718624779164,0.001,65854.0,65853.0,1.61411026]
[1718624779365,0.001,65854.0,65853.0,1.59111026]
[1718624779799,0.05,65857.0,65856.0,0.455538]
[1718624780279,0.06480185,65857.0,65856.0,0.2757347]
[1718624780520,0.01480185,65857.0,65856.0,0.2757347]
[1718624780691,0.06480185,65857.0,65856.0,0.2757347]
[1718624781094,0.06480185,65857.0,65856.0,0.2797347]
[1718624781529,0.06480185,65857.0,65856.0,0.5834267]
[1718624781857,0.06480185,65857.0,65856.0,0.5954267]
[1718624782519,0.06480185,65857.0,65856.0,0.2917347]
[1718624782934,0.1222977,65857.0,65856.0,0.2917347]
[1718624784325,0.06480185,65857.0,65856.0,0.2917347]
[1718624785911,0.06480185,65857.0,65856.0,0.167846]
[1718624786110,0.06480185,65857.0,65856.0,0.471538]
[1718624792944,0.01480185,65857.0,65856.0,0.471538]
[1718624793372,0.01480185,65857.0,65856.0,0.92731779]
[1718624793745,0.01480185,65857.0,65856.0,1.04874328]
[1718624794166,0.06480185,65857.0,65856.0,1.04874328]
[1718624794345,0.06480185,65857.0,65856.0,1.1115118]
[1718624794751,0.05,65857.0,65856.0,1.1115118]
[1718624794954,0.05,65858.0,65857.0,0.455532]
[1718624795151,0.0769789,65859.0,65858.0,0.455524]
[1718624795339,0.0769789,65859.0,65858.0,1.09548786]
[1718624795542,0.0769789,65859.0,65858.0,1.42217086]
[1718624795989,0.0769789,65859.0,65858.0,1.46767235]
[1718624796543,0.0769789,65859.0,65858.0,1.42217086]
[1718624797031,0.0769789,65859.0,65858.0,1.43617086]
[1718624799108,0.0769789,65859.0,65858.0,1.45017086]
[1718624800875,0.0769789,65859.0,65858.0,1.49567235]
[1718624801380,0.0769789,65859.0,65858.0,1.45017086]
[1718624802542,0.0769789,65859.0,65858.0,1.45020145]
[1718624802656,0.0519789,65859.0,65858.0,1.45020145]
[1718624804778,0.00093501,65859.0,65858.0,1.75388445]
[1718624804989,0.00093501,65859.0,65858.0,1.99218445]
[1718624805164,0.00093501,65859.0,65858.0,2.1875845]
[1718624805387,0.00093501,65859.0,65858.0,2.0346886]
[1718624805596,0.00093501,65859.0,65858.0,2.1875845]
[1718624805855,0.00093501,65859.0,65858.0,2.27843803]
[1718624807391,0.00093501,65859.0,65858.0,2.1875845]
[1718624808493,0.00093501,65859.0,65858.0,2.18625684]
[1718624808725,0.00093501,65859.0,65858.0,2.12345867]
[1718624808926,0.00093501,65859.0,65858.0,2.48981542]
[1718624809163,0.00093501,65859.0,65858.0,2.18613242]
[1718624809407,0.009383,65870.0,65864.0,0.2]
[1718624809638,0.009383,65870.0,65869.0,1.135812]
[1718624809865,0.009383,65870.0,65869.0,1.54979903]
[1718624810081,0.009383,65870.0,65869.0,1.67279903]
[1718624812579,0.06042689,65874.0,65873.0,1.062649]
[1718624812730,0.06042689,65874.0,65873.0,1.49493603]
[1718624815096,0.03542689,65874.0,65873.0,1.49493603]
[1718624817101,0.03542689,65874.0,65873.0,1.05554828]
[1718624817303,0.03542689,65874.0,65873.0,1.12864828]
[1718624818343,0.09292274,65874.0,65873.0,1.12864828]
[1718624818768,0.1078415,65874.0,65873.0,0.52258225]
[1718624818979,0.1734415,65874.0,65873.0,0.52258225]
[1718624819617,0.11594565,65874.0,65873.0,0.82619625]
[1718624821099,0.1734415,65874.0,65873.0,0.52258225]
[1718624821298,1.1327635,65874.0,65873.0,0.12258746]
[1718624821570,0.65778585,65863.0,65862.0,0.2]
[1718624821772,0.96144585,65863.0,65862.0,0.15208779]
[1718624821914,0.97657815,65863.0,65862.0,0.27467077]
[1718624822132,1.30023815,65863.0,65862.0,0.14412065]
[1718624822339,0.99657815,65863.0,65862.0,0.02153767]
[1718624822535,0.151839,65859.0,65858.0,0.02885]
[1718624822704,0.37103485,65859.0,65858.0,0.18093779]
[1718624822903,0.38616715,65859.0,65858.0,0.18093779]
[1718624823420,0.38616715,65859.0,65858.0,0.24161147]
[1718624823788,0.68984615,65859.0,65858.0,0.24161147]
[1718624824256,1.29720415,65859.0,65858.0,0.18093779]
[1718624824459,1.65088315,65859.0,65858.0,0.02885]
[1718624824664,1.34720415,65859.0,65858.0,0.02885]
[1718624824833,1.39720415,65859.0,65858.0,0.02885]
[1718624829232,1.40720415,65859.0,65858.0,0.02885]
[1718624829453,1.48030415,65859.0,65858.0,0.02885]
[1718624831927,1.78398315,65859.0,65858.0,0.02885]
[1718624833166,1.48030415,65859.0,65858.0,0.02885]
[1718624833800,1.78398315,65859.0,65858.0,0.02885]
[1718624834348,1.48030415,65859.0,65858.0,0.02885]
[1718624835390,1.78398315,65859.0,65858.0,0.02885]
[1718624836749,1.69715485,65854.0,65853.0,0.00085]
[1718624836921,2.16469525,65854.0,65853.0,0.00085]
[1718624837320,1.86099325,65854.0,65853.0,0.00085]
[1718624840046,1.78494936,65854.0,65853.0,0.00085]
[1718624845689,1.71184936,65854.0,65853.0,0.00085]
[1718624845902,1.78494936,65854.0,65853.0,0.00085]
[1718624859307,1.77494936,65854.0,65853.0,0.00085]
[1718624859728,1.78494936,65854.0,65853.0,0.00085]
[1718624862580,1.33534736,65854.0,65853.0,0.00085]
[1718624865070,1.34534736,65854.0,65853.0,0.00085]
[1718624866143,1.33534736,65854.0,65853.0,0.00085]
[1718624866712,1.33634736,65854.0,65853.0,0.01485]
[1718624867980,1.25614736,65854.0,65853.0,0.01485]
[1718624869956,1.25714736,65854.0,65853.0,0.02885]
[1718624881667,1.26714736,65854.0,65853.0,0.02885]
[1718624881873,1.34944736,65854.0,65853.0,0.02885]
[1718624882498,1.40994736,65854.0,65853.0,0.02885]
[1718624882700,1.40794736,65854.0,65853.0,0.00085]
[1718624883122,1.40994736,65854.0,65853.0,0.00885]
[1718624883751,1.44172192,65854.0,65853.0,0.00885]
[1718624884594,1.74542392,65854.0,65853.0,0.00885]
[1718624884851,1.81124869,65854.0,65853.0,0.00885]
[1718624885053,1.87931521,65854.0,65853.0,0.00885]
[1718624885458,1.97931521,65854.0,65853.0,0.00885]
[1718624885655,1.87922289,65854.0,65853.0,0.00885]
[1718624885888,1.81116208,65854.0,65853.0,0.00885]
[1718624886331,1.87921869,65854.0,65853.0,0.00885]
[1718624887783,1.97921869,65854.0,65853.0,0.00885]
[1718624888827,1.94752542,65854.0,65853.0,0.00885]
[1718624889031,1.97917576,65854.0,65853.0,0.00885]
[1718624889659,1.97917401,65854.0,65853.0,0.00885]
[1718624889890,2.1312618,65854.0,65853.0,0.00885]
[1718624890082,2.81695965,65854.0,65853.0,0.00885]
[1718624890299,2.96904744,65854.0,65853.0,0.00885]
[1718624890519,2.95562945,65854.0,65853.0,0.00885]
[1718624890933,2.95462945,65854.0,65853.0,0.00085]
[1718624891198,2.80254166,65854.0,65853.0,0.00085]
[1718624891411,2.80275116,65854.0,65853.0,0.00385]
[1718624891612,2.80175116,65854.0,65853.0,0.00385]
[1718624891817,2.80175116,65854.0,65853.0,0.00085]
[1718624892020,2.80775116,65854.0,65853.0,0.00185]
[1718624892449,2.80175116,65854.0,65853.0,0.00085]
[1718624892649,2.46812251,65854.0,65853.0,0.00085]
[1718624892848,2.48012251,65854.0,65853.0,0.00185]
[1718624896122,2.59343721,65854.0,65853.0,0.00185]
[1718624896813,2.56652017,65854.0,65853.0,0.00185]
[1718624897029,2.54386491,65854.0,65853.0,0.00185]
[1718624897239,2.78988134,65854.0,65853.0,0.00185]
[1718624897444,2.8805153,65854.0,65853.0,0.00185]
[1718624897617,2.88988134,65854.0,65853.0,0.00185]
[1718624897868,2.66652017,65854.0,65853.0,0.00185]
[1718624899370,2.60048715,65854.0,65853.0,0.00185]
[1718624899577,2.55337871,65854.0,65853.0,0.00185]
[1718624900172,2.55353993,65854.0,65853.0,0.00185]
[1718624900383,2.70562772,65854.0,65853.0,0.00185]
[1718624901440,2.79625264,65854.0,65853.0,0.00185]
[1718624902369,2.64416485,65854.0,65853.0,0.00185]
[1718624902778,2.64415544,65854.0,65853.0,0.00185]
[1718624903395,2.55353993,65854.0,65853.0,0.00185]
[1718624903801,2.64400092,65854.0,65853.0,0.00185]
[1718624904247,2.54400092,65854.0,65853.0,0.00185]
[1718624904416,2.64400092,65854.0,65853.0,0.00185]
[1718624908320,2.55339,65854.0,65853.0,0.00185]
[1718624908528,2.64400092,65854.0,65853.0,0.00185]
[1718624908737,2.55339,65854.0,65853.0,0.00185]
[1718624909629,2.51916043,65854.0,65853.0,0.00185]
[1718624909825,2.55102028,65854.0,65853.0,0.00185]
[1718624910510,2.55096789,65854.0,65853.0,0.00185]
[1718624911812,2.55097013,65854.0,65853.0,0.00185]
[1718624912052,2.55099718,65854.0,65853.0,0.00185]
[1718624912920,2.64160124,65854.0,65853.0,0.00185]
[1718624915915,2.54160124,65854.0,65853.0,0.00185]
[1718624916322,2.64160124,65854.0,65853.0,0.00185]
[1718624920370,2.55099718,65854.0,65853.0,0.00185]
[1718624921150,2.64164179,65854.0,65853.0,0.00185]
[1718624921349,2.55099718,65854.0,65853.0,0.00185]
[1718624923310,2.66425226,65854.0,65853.0,0.00185]
[1718624925331,2.48494295,65854.0,65853.0,0.00185]
[1718624925534,2.55037637,65854.0,65853.0,0.00185]
[1718624929670,2.55052937,65854.0,65853.0,0.00185]
[1718624930780,2.59876183,65854.0,65853.0,0.00185]
[1718624932691,2.45312114,65854.0,65853.0,0.00185]
[1718624932895,2.59898497,65854.0,65853.0,0.00185]
[1718624933532,2.59898273,65854.0,65853.0,0.00185]
[1718624933942,3.11271179,65854.0,65853.0,0.00185]
[1718624934152,3.11271179,65854.0,65843.0,0.00085]
[1718624934153,1.95569184,65844.0,65843.0,0.00085]
[1718624934362,2.52437331,65844.0,65843.0,0.00085]
[1718624934540,2.82812131,65844.0,65843.0,0.00085]
[1718624934747,3.02711654,65844.0,65843.0,0.00085]
[1718624934996,2.88125495,65844.0,65843.0,0.00085]
[1718624935203,3.02860891,65844.0,65843.0,0.00085]
[1718624935379,2.84396945,65844.0,65843.0,0.00085]
[1718624936440,2.85096945,65844.0,65843.0,0.00185]
[1718624936833,2.85496945,65844.0,65843.0,0.00185]
[1718624937313,2.86896945,65844.0,65843.0,0.00185]
[1718624938354,3.07105724,65844.0,65843.0,0.00185]
[1718624939851,3.12105724,65844.0,65843.0,0.00185]
[1718624941874,3.11979342,65844.0,65843.0,0.00185]
[1718624942098,2.79460563,65844.0,65843.0,0.00185]
[1718624942317,2.96770563,65844.0,65843.0,0.00185]
[1718624942734,2.29495763,65844.0,65843.0,0.00185]
[1718624942942,2.36805763,65844.0,65843.0,0.00185]
[1718624943394,2.4824942,65844.0,65843.0,0.00185]
[1718624943819,2.41566917,65844.0,65843.0,0.00185]
[1718624944031,2.48298197,65844.0,65843.0,0.00185]
[1718624945271,2.36958903,65844.0,65843.0,0.00185]
[1718624946696,2.31958903,65844.0,65843.0,0.00185]
[1718624946901,2.36958903,65844.0,65843.0,0.00185]
[1718624947576,2.39002768,65844.0,65843.0,0.00185]
[1718624948204,2.48068065,65844.0,65843.0,0.00185]
[1718624948396,2.39002768,65844.0,65843.0,0.00185]
[1718624948643,2.48067476,65844.0,65843.0,0.00185]
[1718624949878,2.40757476,65844.0,65843.0,0.00185]
[1718624950086,2.48067476,65844.0,65843.0,0.00185]
[1718624951907,2.50899329,65844.0,65843.0,0.00185]
[1718624952114,2.17692676,65844.0,65843.0,0.00185]
[1718624954008,2.176214,65844.0,65843.0,0.00185]
[1718624954655,2.19998751,65844.0,65843.0,0.00185]
[1718624955754,2.14998751,65844.0,65843.0,0.00185]
[1718624955980,2.19998751,65844.0,65843.0,0.00185]
[1718624956199,2.14998751,65844.0,65843.0,0.00185]
[1718624956417,2.08997373,65844.0,65843.0,0.00185]
[1718624956625,1.44525479,65844.0,65843.0,0.14355]
[1718624956843,1.47305221,65844.0,65843.0,0.14355]
[1718624957079,1.48305221,65844.0,65843.0,0.14355]
[1718624957287,1.41646595,65844.0,65843.0,0.14355]
[1718624957497,1.48253496,65844.0,65843.0,0.14355]
[1718624957933,1.41646595,65844.0,65843.0,0.14355]
[1718624958161,1.78574212,65844.0,65843.0,0.00185]
[1718624958597,1.83103969,65844.0,65843.0,0.00185]
[1718624958812,1.83103901,65844.0,65843.0,0.00185]
[1718624960627,1.95119855,65844.0,65843.0,0.00185]
[1718624960796,1.98269976,65844.0,65843.0,0.00185]
[1718624961007,1.8718747,65844.0,65843.0,0.00185]
[1718624961825,1.84037349,65844.0,65843.0,0.00185]
[1718624962713,1.90513301,65844.0,65843.0,0.00185]
[1718624965328,1.83203301,65844.0,65843.0,0.00185]
[1718624965528,1.90513301,65844.0,65843.0,0.00185]
[1718624965904,1.90533557,65844.0,65843.0,0.00185]
[1718624966316,1.88156206,65844.0,65843.0,0.00185]
[1718624967599,1.91312119,65844.0,65843.0,0.00185]
[1718624970019,2.08862119,65844.0,65843.0,0.00185]
[1718624970487,2.39836919,65844.0,65843.0,0.00185]
[1718624970744,2.45846919,65844.0,65843.0,0.00185]
[1718624971134,2.35846919,65844.0,65843.0,0.00185]
[1718624972145,2.45846919,65844.0,65843.0,0.00185]
[1718624972596,2.57171681,65844.0,65843.0,0.00185]
[1718624974400,2.45846919,65844.0,65843.0,0.00185]
[1718624975047,2.61055698,65844.0,65843.0,0.00185]
[1718624975262,2.71055698,65844.0,65843.0,0.00185]
[1718624976525,2.60846919,65844.0,65843.0,0.00185]
[1718624977387,2.91221719,65844.0,65843.0,0.00185]
[1718624977610,2.91220791,65844.0,65843.0,0.00185]
[1718624978559,2.88064878,65844.0,65843.0,0.00185]
[1718624978858,2.91222478,65844.0,65843.0,0.00185]
[1718624979266,3.04815295,65844.0,65843.0,0.00185]
[1718624980455,3.12563451,65844.0,65843.0,0.00185]
[1718624980701,3.04815295,65844.0,65843.0,0.00185]
[1718624980911,2.91222478,65844.0,65843.0,0.00185]
[1718624981549,3.04815295,65844.0,65843.0,0.00185]
[1718624981931,2.91222478,65844.0,65843.0,0.00185]
[1718624983585,3.04815295,65844.0,65843.0,0.00185]
[1718624985451,3.13665166,65844.0,65843.0,0.00185]
[1718624985655,3.00072349,65844.0,65843.0,0.00185]
[1718624985861,3.13665166,65844.0,65843.0,0.00185]
[1718624987104,3.07169886,65844.0,65843.0,0.00185]
[1718624987309,2.93577069,65844.0,65843.0,0.00185]
[1718624987554,3.04014047,65844.0,65843.0,0.00185]
[1718624987764,3.13705346,65844.0,65843.0,0.00185]
[1718624988726,1.85602184,65831.0,65830.0,0.0774]
[1718624988953,2.04319425,65831.0,65830.0,0.0774]
[1718624989151,1.97787034,65831.0,65830.0,0.0774]
[1718624989451,2.04251457,65831.0,65830.0,0.0774]
[1718624990060,2.11048169,65831.0,65830.0,0.0774]
[1718624990615,2.11148169,65831.0,65830.0,0.0854]
[1718624990821,2.11143963,65831.0,65830.0,0.0854]
[1718624991044,2.26352742,65831.0,65830.0,0.008]
[1718624991260,2.2955603,65831.0,65830.0,0.008]
[1718624991486,2.1955603,65831.0,65830.0,0.009]
[1718624991893,2.1955603,65831.0,65830.0,0.001]
[1718624991894,2.1945603,65831.0,65830.0,0.001]
[1718624992331,2.1945603,65831.0,65830.0,0.002]
[1718624992779,2.26249131,65831.0,65830.0,0.002]
[1718624993446,2.2945603,65831.0,65830.0,0.002]
[1718624993869,2.39118313,65831.0,65830.0,0.002]
[1718624994082,2.39125963,65831.0,65830.0,0.002]
[1718624994482,2.30069569,65831.0,65830.0,0.002]
[1718624994694,2.30076959,65831.0,65830.0,0.002]
[1718624996240,2.30078763,65831.0,65830.0,0.002]
[1718624996856,2.34178766,65831.0,65830.0,0.002]
[1718624999263,2.44178766,65831.0,65830.0,0.002]
[1718624999476,2.98729566,65831.0,65830.0,0.002]
[1718624999686,3.03257294,65831.0,65830.0,0.002]
[1718625000062,2.91939563,65831.0,65830.0,0.002]
[1718625000471,3.09141202,65831.0,65830.0,0.002]
[1718625000676,1.45235784,65824.0,65823.0,0.00085]
[1718625000887,1.67191011,65824.0,65823.0,0.00085]
[1718625001133,2.59582177,65824.0,65823.0,0.00085]
[1718625001361,2.695821,65824.0,65823.0,0.00085]
[1718625001993,2.86683393,65824.0,65823.0,0.00685]
[1718625002195,2.86683393,65824.0,65823.0,0.00635]
[1718625002441,2.779321,65824.0,65823.0,0.00635]
[1718625002643,2.77613821,65824.0,65823.0,0.00635]
[1718625002866,2.77620069,65824.0,65823.0,0.00635]
[1718625003420,2.84405353,65824.0,65823.0,0.00635]
[1718625003620,2.84305353,65824.0,65823.0,0.00035]
[1718625004047,2.84505353,65824.0,65823.0,0.00035]
[1718625004638,2.90805353,65824.0,65823.0,0.00035]
[1718625005033,2.91805353,65824.0,65823.0,0.00035]
[1718625005235,2.78534717,65824.0,65823.0,0.00035]
[1718625005416,2.91810885,65824.0,65823.0,0.00035]
[1718625005634,2.81810885,65824.0,65823.0,0.00035]
[1718625005850,2.82240048,65824.0,65823.0,0.00035]
[1718625006059,2.89550048,65824.0,65823.0,0.00035]
[1718625006493,2.79550048,65824.0,65823.0,0.00035]
[1718625006698,2.75028004,65824.0,65823.0,0.00035]
[1718625006901,2.61418004,65824.0,65823.0,0.00035]
[1718625007110,2.30394004,65824.0,65823.0,0.00035]
[1718625007332,1.92700004,65824.0,65823.0,0.00035]
[1718625007564,2.00010004,65824.0,65823.0,0.00035]
[1718625007913,1.99010004,65824.0,65823.0,0.00035]
[1718625008118,2.00010004,65824.0,65823.0,0.00035]
[1718625008547,2.00059891,65824.0,65823.0,0.00035]
[1718625011623,2.02088375,65824.0,65823.0,0.00035]
[1718625012925,2.16028375,65824.0,65823.0,0.00035]
[1718625013329,2.46412375,65824.0,65823.0,0.00035]
[1718625013543,2.39102375,65824.0,65823.0,0.00035]
[1718625013769,2.08718375,65824.0,65823.0,0.00035]
[1718625013972,2.16028375,65824.0,65823.0,0.00035]
[1718625014184,2.46091025,65824.0,65823.0,0.00035]
[1718625014642,2.15707025,65824.0,65823.0,0.00035]
[1718625015904,2.56091025,65824.0,65823.0,0.00035]
[1718625017807,2.52924979,65824.0,65823.0,0.00035]
[1718625018064,2.56059115,65824.0,65823.0,0.00035]
[1718625019172,2.5578939,65824.0,65823.0,0.00035]
[1718625019373,2.62571734,65824.0,65823.0,0.00035]
[1718625019513,2.5578939,65824.0,65823.0,0.00035]
[1718625020421,2.62571734,65824.0,65823.0,0.00035]
[1718625020957,2.77780513,65824.0,65823.0,0.00035]
[1718625021165,2.70915966,65824.0,65823.0,0.00035]
[1718625021363,2.91091187,65824.0,65823.0,0.00035]
[1718625021613,2.77011095,65824.0,65823.0,0.00035]
[1718625021832,2.65707187,65824.0,65823.0,0.00035]
[1718625022240,3.07397477,65824.0,65823.0,0.00035]
[1718625023228,3.22387477,65824.0,65823.0,1e-06]
[1718625023568,3.19053053,65824.0,65823.0,1e-06]
[1718625023769,3.21853053,65824.0,65823.0,1e-06]
[1718625023994,3.21806809,65824.0,65823.0,1e-06]
[1718625024523,3.20406809,65824.0,65823.0,1e-06]
[1718625024733,2.40726911,65824.0,65823.0,1e-06]
[1718625024903,2.10508985,65824.0,65823.0,1e-06]
[1718625025140,2.17818985,65824.0,65823.0,1e-06]
[1718625025770,2.24051924,65824.0,65823.0,1e-06]
[1718625025975,2.22651924,65824.0,65823.0,1e-06]
[1718625026581,2.53035924,65824.0,65823.0,1e-06]
[1718625026817,2.55413959,65824.0,65823.0,1e-06]
[1718625027017,2.56813959,65824.0,65823.0,1e-06]
[1718625027650,2.66813959,65824.0,65823.0,1e-06]
[1718625027855,2.37927885,65824.0,65823.0,1e-06]
[1718625028574,3.20285053,65824.0,65823.0,1e-06]
[1718625028781,2.89901053,65824.0,65823.0,1e-06]
[1718625028996,3.0826751,65824.0,65823.0,1e-06]
[1718625029203,3.05891053,65824.0,65823.0,1e-06]
[1718625029418,2.98581053,65824.0,65823.0,1e-06]
[1718625029629,2.90682274,65824.0,65823.0,1e-06]
[1718625029847,2.9575794,65824.0,65823.0,1e-06]
[1718625030052,2.83049335,65824.0,65823.0,1e-06]
[1718625030294,2.81649335,65824.0,65823.0,1e-06]
[1718625030506,2.9295794,65824.0,65823.0,1e-06]
[1718625031131,3.09566719,65824.0,65823.0,1e-06]
[1718625031356,2.9435794,65824.0,65823.0,1e-06]
[1718625031797,2.83049335,65824.0,65823.0,1e-06]
[1718625032225,2.49997461,65818.0,65817.0,0.00085]
[1718625032440,0.64031661,65806.0,65805.0,0.1461]
[1718625032642,1.24816261,65806.0,65805.0,0.1461]
[1718625032889,1.33302339,65806.0,65805.0,0.1461]
[1718625033094,1.63694639,65806.0,65805.0,0.1461]
[1718625033951,1.24992339,65806.0,65805.0,0.1461]
[1718625034175,1.24992339,65806.0,65805.0,0.160799]
[1718625034384,1.32302339,65806.0,65805.0,0.160799]
[1718625034594,0.63267819,65806.0,65805.0,0.1461]
[1718625034805,0.57564478,65806.0,65805.0,0.1461]
[1718625035016,0.57564478,65806.0,65805.0,0.27223891]
[1718625035017,0.27372178,65806.0,65805.0,0.27223891]
[1718625035266,0.56764478,65806.0,65805.0,0.2995518]
[1718625035489,0.07076078,65806.0,65805.0,0.2995518]
[1718625035700,0.07576078,65806.0,65805.0,0.2995518]
[1718625035910,0.07076078,65806.0,65805.0,0.2995518]
[1718625036343,0.58164478,65806.0,65805.0,0.2995518]
[1718625036586,0.58164478,65806.0,65805.0,0.27223891]
[1718625036587,0.57664478,65806.0,65805.0,0.27223891]
[1718625036799,0.56764478,65806.0,65805.0,0.27308891]
[1718625037010,0.56964478,65806.0,65805.0,0.27308891]
[1718625037228,0.51964478,65806.0,65805.0,0.27308891]
[1718625037638,0.51764478,65806.0,65805.0,0.27308891]
[1718625037768,0.56864478,65806.0,65805.0,0.27308891]
[1718625037976,0.56964478,65806.0,65805.0,0.31594428]
[1718625038402,0.21572178,65806.0,65805.0,0.31594428]
[1718625038625,0.26572178,65806.0,65805.0,0.27308891]
[1718625038999,0.06376078,65806.0,65805.0,0.27308891]
[1718625040129,0.01376078,65806.0,65805.0,0.8836695]
[1718625040343,0.01376078,65806.0,65805.0,0.9066695]
[1718625040590,0.002,65806.0,65805.0,0.70080745]
[1718625041012,0.01375487,65806.0,65805.0,0.70080745]
[1718625041222,0.002,65806.0,65805.0,0.70080745]
[1718625041691,0.95933961,65806.0,65805.0,0.27308891]
[1718625041930,1.31326261,65806.0,65805.0,0.14695]
[1718625042150,1.32504965,65806.0,65805.0,0.14695]
[1718625044030,1.32404965,65806.0,65805.0,0.14695]
[1718625044234,1.30665045,65806.0,65805.0,0.14695]
[1718625044858,0.87259404,65806.0,65805.0,0.14695]
[1718625045198,1.23255045,65806.0,65805.0,0.14695]
[1718625045553,1.24994965,65806.0,65805.0,0.14695]
[1718625046350,1.25094965,65806.0,65805.0,0.14695]
[1718625046774,1.23355045,65806.0,65805.0,0.14695]
[1718625048284,0.16982045,65806.0,65805.0,0.14695]
[1718625048490,0.62570445,65806.0,65805.0,0.14695]
[1718625048708,0.62570445,65806.0,65805.0,0.27308256]
[1718625048978,0.56867104,65806.0,65805.0,0.27308256]
[1718625049181,0.62570445,65806.0,65805.0,0.27308256]
[1718625049393,0.62570445,65806.0,65805.0,0.30047982]
[1718625049596,0.62570445,65806.0,65805.0,0.27308256]